bitfinex/quotes_ETHUSD_20250721
["timestamp","ask_amount","ask_price","bid_price","bid_amount"]
[1753059825431,0.4665,3750.8,3749.6,9.06092325]
[1753059825750,0.7973,3750.5,3749.6,6.394]
[1753059825939,1.2638,3750.4,3749.7,7.17]
[1753059826266,0.8051,3750.2,3749.7,7.17]
[1753059826691,0.4665,3750.1,3749.6,6.394]
[1753059826850,3.47162923,3750.2,3749.6,6.394]
[1753059826851,0.4665,3750.0,3749.8,4.17]
[1753059827476,0.4665,3749.9,3749.8,4.17]
[1753059828646,1.2352,3750.6,3749.9,3.0]
[1753059828874,1.2352,3750.6,3750.0,4.17]
[1753059829666,1.2352,3750.6,3750.4,0.1328]
[1753059829867,0.7687,3750.6,3750.5,4.17]
[1753059830468,1.2352,3750.6,3750.5,4.17]
[1753059830641,0.002,3751.0,3750.5,4.17]
[1753059830846,0.7854,3750.9,3750.5,4.17]
[1753059831142,0.4665,3750.8,3750.6,0.1328]
[1753059831582,0.02,3750.9,3750.6,0.1328]
[1753059832547,0.4865,3750.9,3750.6,0.1328]
[1753059832749,0.4665,3750.8,3750.6,0.1328]
[1753059833700,0.02,3750.9,3750.6,0.1328]
[1753059833859,0.02,3750.9,3750.7,4.169]
[1753059834463,0.02,3750.9,3750.7,6.83514714]
[1753059834804,0.02,3750.9,3750.8,0.1328]
[1753059835363,0.02,3750.9,3750.8,2.79889789]
[1753059835791,0.02,3750.9,3750.8,0.1328]
[1753059836107,0.02,3750.9,3750.8,2.79889789]
[1753059837562,0.02,3750.9,3750.8,0.1328]
[1753059837806,0.02,3750.9,3750.8,4.3018]
[1753059837956,0.02,3750.9,3750.8,4.73198]
[1753059838985,0.4834,3750.9,3750.8,4.3018]
[1753059839661,0.4834,3750.9,3750.8,0.1328]
[1753059839861,0.4834,3750.9,3750.8,4.3008]
[1753059840304,1.3067,3750.9,3750.8,0.1328]
[1753059840488,0.9561,3750.8,3750.4,4.168]
[1753059840681,0.8233,3750.6,3750.4,4.168]
[1753059840886,0.4634,3750.5,3750.4,4.168]
[1753059841189,0.7529,3750.4,3750.2,4.168]
[1753059841389,0.4634,3750.3,3749.7,0.1328]
[1753059841701,2.66685896,3749.8,3749.3,0.1328]
[1753059841904,0.9345,3749.9,3749.3,4.3008]
[1753059842908,0.8017,3749.9,3749.3,4.168]
[1753059843208,0.8017,3749.9,3749.3,4.3008]
[1753059843209,0.4634,3749.8,3749.3,4.3008]
[1753059843709,0.4634,3749.7,3749.3,4.3008]
[1753059843909,0.4634,3749.6,3749.3,4.3008]
[1753059844207,0.8017,3749.9,3749.3,4.3008]
[1753059844413,0.4634,3749.5,3749.3,0.1328]
[1753059844587,0.8017,3749.9,3749.4,4.168]
[1753059845309,1.2651,3749.9,3749.4,4.168]
[1753059845886,3.02,3750.9,3749.4,4.168]
[1753059845887,0.7677,3750.4,3749.8,2.6668055]
[1753059846216,0.7677,3750.4,3749.9,4.168]
[1753059846371,0.4634,3750.3,3750.0,0.1328]
[1753059847402,0.7677,3750.4,3750.0,0.1328]
[1753059847605,0.5962,3750.8,3750.0,0.56288]
[1753059847874,0.8197,3750.7,3750.0,0.58954666]
[1753059848177,0.8197,3750.7,3750.0,3.22954002]
[1753059848522,0.8197,3750.7,3750.1,2.66659555]
[1753059848758,0.02,3750.9,3750.6,0.1328]
[1753059848976,0.4834,3750.9,3750.7,4.168]
[1753059849277,0.4634,3750.8,3750.7,4.168]
[1753059849564,0.02,3750.9,3750.7,4.168]
[1753059849938,0.4834,3750.9,3750.7,4.168]
[1753059850472,0.4634,3750.8,3750.7,4.168]
[1753059850621,0.4634,3750.8,3749.0,2.86661612]
[1753059850826,0.817,3750.7,3749.9,0.1328]
[1753059851055,0.817,3750.7,3749.6,4.76798471]
[1753059851056,0.1328,3750.6,3750.1,3.0]
[1753059851250,0.1328,3750.6,3750.2,4.3008]
[1753059851434,0.4634,3750.5,3750.2,4.3008]
[1753059851731,0.4634,3750.4,3750.2,4.3008]
[1753059852036,0.4634,3750.3,3750.2,4.168]
[1753059852922,0.8117,3750.2,3749.9,4.168]
[1753059853119,0.1328,3750.1,3749.9,4.168]
[1753059853426,0.4634,3750.0,3749.9,4.168]
[1753059853625,0.1328,3750.1,3749.9,4.168]
[1753059853863,0.4634,3750.0,3749.9,4.168]
[1753059854637,0.1328,3750.1,3749.9,4.168]
[1753059855054,0.8117,3750.2,3749.9,4.168]
[1753059855255,0.4634,3750.1,3749.9,4.168]
[1753059855483,0.8117,3750.2,3749.9,4.168]
[1753059855694,0.4634,3750.0,3749.9,4.168]
[1753059855988,1.2298,3750.5,3749.9,4.59808]
[1753059856287,0.7664,3750.5,3749.9,4.3008]
[1753059856449,5.93208383,3750.4,3749.9,4.168]
[1753059856649,0.1328,3750.0,3749.9,4.168]
[1753059857002,0.5962,3750.0,3749.4,0.1328]
[1753059857148,0.5962,3750.0,3748.9,4.76099997]
[1753059857149,2.66721496,3749.3,3748.9,0.001]
[1753059857448,0.9177,3749.2,3748.9,0.001]
[1753059858445,0.9516,3749.7,3748.9,0.4344]
[1753059858682,0.9516,3749.7,3749.0,0.1328]
[1753059858881,0.9516,3749.7,3749.1,4.168]
[1753059859462,0.4634,3749.9,3749.1,4.168]
[1753059859650,0.4634,3749.9,3749.3,0.1328]
[1753059859854,0.60362,3749.9,3749.3,0.1328]
[1753059860054,0.1328,3749.6,3749.1,4.168]
[1753059860287,0.4634,3749.5,3749.1,4.168]
[1753059860535,0.806,3750.0,3749.2,3.0]
[1753059860709,0.1328,3750.2,3749.5,2.66695831]
[1753059861045,0.7681,3750.4,3749.5,2.66695831]
[1753059861046,0.1328,3750.6,3749.9,0.1328]
[1753059861395,0.1328,3750.6,3749.9,0.15946737]
[1753059861630,0.7681,3750.7,3749.9,0.02666737]
[1753059861839,0.4634,3750.6,3750.2,0.1328]
[1753059862021,0.4634,3750.6,3750.3,4.168]
[1753059862196,0.59983,3750.5,3750.2,0.1328]
[1753059862395,0.9009,3750.4,3749.7,4.3008]
[1753059862595,0.4634,3750.3,3749.7,4.168]
[1753059862804,0.1328,3750.0,3749.7,4.168]
[1753059863437,0.4634,3749.9,3749.7,4.168]
[1753059863730,0.4634,3749.8,3749.7,4.168]
[1753059864359,0.4634,3749.8,3749.4,0.1328]
[1753059864360,0.8157,3749.9,3749.4,0.1328]
[1753059864561,0.4634,3749.8,3749.4,0.1328]
[1753059865060,0.8157,3749.9,3749.4,0.1328]
[1753059865464,0.8157,3749.9,3749.4,1.13227784]
[1753059865751,0.1328,3750.0,3749.5,0.02667022]
[1753059865912,0.7682,3750.3,3749.5,0.46007022]
[1753059866115,0.7682,3750.3,3749.8,0.1328]
[1753059866328,0.7682,3750.3,3749.9,4.167]
[1753059866846,0.5962,3750.2,3749.9,4.167]
[1753059867172,2.66666666,3750.0,3749.5,0.1328]
[1753059867341,0.1328,3749.7,3749.2,3.0]
[1753059867721,0.4634,3749.6,3749.2,3.0]
[1753059868043,0.1328,3749.7,3749.1,4.2998]
[1753059868241,0.4356,3749.6,3749.1,4.2998]
[1753059868953,0.9435,3750.4,3749.5,0.1328]
[1753059869252,0.9435,3750.4,3749.7,0.1328]
[1753059869456,0.9435,3750.4,3749.8,4.167]
[1753059869657,0.8107,3750.4,3749.9,0.02666737]
[1753059869862,0.8107,3750.4,3750.0,0.1328]
[1753059870061,0.4356,3750.3,3750.0,0.1328]
[1753059870533,0.4356,3750.3,3749.9,4.168]
[1753059870723,0.4356,3750.2,3749.7,0.1328]
[1753059870919,0.4356,3750.2,3749.8,4.168]
[1753059871119,0.4356,3750.1,3749.8,4.168]
[1753059871368,0.4356,3750.0,3749.8,4.168]
[1753059871669,3.6098942,3750.4,3749.8,4.168]
[1753059871670,0.4356,3749.9,3749.8,4.168]
[1753059872663,0.1328,3750.0,3749.8,4.168]
[1753059872881,0.1328,3750.0,3749.8,4.5848]
[1753059873086,0.1328,3750.6,3749.9,0.15946737]
[1753059873240,0.1328,3750.6,3749.9,0.1328]
[1753059874166,0.002,3750.3,3749.9,0.1328]
[1753059874353,0.002,3750.3,3749.9,0.64339]
[1753059875873,0.002,3750.3,3749.9,5.29725734]
[1753059876088,0.002,3750.3,3750.2,0.1328]
[1753059878701,0.002,3750.3,3749.9,4.75999997]
[1753059878864,0.002,3750.3,3750.1,4.167]
[1753059879052,0.4356,3750.2,3750.1,4.167]
[1753059879883,0.4356,3750.2,3750.0,0.1328]
[1753059880113,1.2189,3750.1,3750.0,4.167]
[1753059880395,1.2189,3750.1,3749.8,0.001]
[1753059880396,1.3517,3750.1,3749.8,0.001]
[1753059880593,3.10228759,3750.0,3749.8,0.001]
[1753059880751,0.7833,3750.1,3749.8,0.001]
[1753059880958,0.1328,3750.0,3749.8,0.001]
[1753059881151,0.002,3750.3,3749.8,0.001]
[1753059881393,0.002,3750.3,3749.8,0.1338]
[1753059881559,0.4356,3750.2,3749.8,0.1338]
[1753059881911,0.4356,3750.1,3749.8,0.001]
[1753059882201,0.1328,3750.0,3749.8,0.001]
[1753059882587,0.4356,3749.9,3749.8,4.168]
[1753059882975,1.2193,3749.9,3749.8,4.168]
[1753059883207,0.7837,3749.9,3749.8,4.168]
[1753059883501,0.1328,3749.9,3749.8,4.5848]
[1753059883656,0.002,3750.3,3749.8,5.1915]
[1753059883857,0.002,3750.3,3749.9,0.4739]
[1753059884062,0.002,3750.3,3750.2,0.1328]
[1753059884282,0.002,3750.3,3750.2,4.2998]
[1753059884683,0.4376,3750.3,3750.2,4.167]
[1753059884890,0.74798423,3750.3,3750.2,4.167]
[1753059885354,0.4376,3750.3,3750.2,4.167]
[1753059885559,0.7682,3750.2,3749.8,0.001]
[1753059885758,5.60422401,3750.1,3749.8,0.001]
[1753059885962,6.03982401,3750.1,3749.8,0.001]
[1753059886194,0.4356,3750.0,3749.8,0.001]
[1753059887206,3.44483777,3749.9,3749.8,0.001]
[1753059887691,0.7781,3749.3,3748.9,4.168]
[1753059887891,0.1328,3749.1,3748.9,4.168]
[1753059888109,0.5684,3749.1,3748.9,4.168]
[1753059888281,0.1328,3749.1,3748.9,4.168]
[1753059888487,0.7781,3749.3,3748.9,4.168]
[1753059889009,1.2137,3749.3,3748.9,4.168]
[1753059889205,0.4356,3749.2,3748.9,4.168]
[1753059889403,0.1328,3749.1,3748.9,4.168]
[1753059889721,0.4356,3749.0,3748.9,4.168]
[1753059889898,0.1328,3749.1,3748.9,4.168]
[1753059890207,0.1328,3749.4,3748.9,4.168]
[1753059890777,0.7562,3750.0,3749.0,1.2653]
[1753059891007,0.7562,3750.0,3749.2,0.1328]
[1753059891008,0.1328,3749.9,3749.2,0.1328]
[1753059891175,0.1328,3749.9,3749.2,2.82666791]
[1753059891877,0.1328,3749.9,3749.2,0.1328]
[1753059892475,0.1328,3749.9,3749.2,2.79997625]
[1753059893224,0.1328,3749.9,3749.2,0.1328]
[1753059894094,0.1328,3749.9,3749.3,0.02667164]
[1753059894272,0.1328,3749.9,3749.4,4.167]
[1753059895741,3.48169196,3749.2,3748.9,0.001]
[1753059895875,6.49353376,3748.5,3748.2,0.001]
[1753059896077,7.0436761,3748.3,3748.2,0.001]
[1753059896276,12.51510011,3748.3,3748.2,0.001]
[1753059896529,12.95070011,3748.3,3748.2,0.001]
[1753059896708,7.31211288,3748.3,3748.2,0.001]
[1753059897018,1.84068887,3748.3,3748.2,0.001]
[1753059897190,10.5566615,3748.3,3748.2,0.001]
[1753059897378,10.52998898,3748.3,3748.2,0.001]
[1753059898918,4.01884728,3748.2,3747.5,0.2495]
[1753059899211,4.827889,3748.2,3747.5,0.2495]
[1753059900329,0.8009,3748.2,3747.5,0.2495]
[1753059900478,1.2351,3748.6,3747.5,3.67221529]
[1753059900677,0.8009,3748.6,3747.8,3.09712004]
[1753059900877,1.2351,3749.1,3748.2,0.4289]
[1753059901280,5.47142401,3748.3,3747.5,1.0038]
[1753059901484,0.5471424,3748.2,3747.5,0.2495]
[1753059901727,5.47142401,3748.6,3747.5,0.6784]
[1753059901922,2.66780765,3748.4,3747.5,0.6784]
[1753059902296,0.8009,3748.7,3747.5,0.6784]
[1753059902495,0.4342,3748.4,3747.5,0.2495]
[1753059902719,2.69455832,3748.3,3747.5,0.2495]
[1753059903043,2.66794728,3748.2,3747.5,0.2495]
[1753059903351,3.10214728,3748.2,3747.5,0.2495]
[1753059903942,4.46244728,3748.2,3747.5,0.2495]
[1753059904245,4.9883,3748.2,3747.5,0.2495]
[1753059904386,0.57964209,3748.3,3747.5,1.0393]
[1753059904586,0.34781598,3748.2,3747.5,1.0393]
[1753059905242,0.4342,3748.2,3747.5,0.2495]
[1753059906522,5.4031,3748.6,3747.6,0.02668374]
[1753059906733,0.1328,3748.3,3747.7,0.1328]
[1753059909004,0.1328,3748.3,3747.9,0.804]
[1753059909208,0.02667252,3748.2,3747.5,4.4245]
[1753059909388,0.02667252,3748.2,3747.5,0.3823]
[1753059909389,0.46087252,3748.2,3747.5,0.3823]
[1753059909728,3.1288198,3748.2,3747.5,0.3823]
[1753059909900,5.03708309,3748.2,3747.5,0.2495]
[1753059910734,8.97059843,3747.6,3747.5,0.2495]
[1753059910906,9.52059843,3747.6,3747.5,0.2495]
[1753059911114,9.95479843,3747.6,3747.5,0.2495]
[1753059912420,12.95479843,3747.6,3747.5,0.2495]
[1753059912623,5.80124563,3747.5,3747.4,0.001]
[1753059912824,3.21865926,3747.2,3747.1,0.021]
[1753059913008,8.20043178,3747.2,3747.1,0.021]
[1753059913226,8.60795926,3747.2,3747.1,0.021]
[1753059913612,4.42995926,3747.2,3747.1,0.021]
[1753059913828,9.18662255,3747.2,3747.1,0.021]
[1753059914344,12.18662255,3747.2,3747.1,0.021]
[1753059914952,2.34096329,3747.2,3747.1,0.021]
[1753059915255,4.9531,3747.2,3747.1,0.021]
[1753059915643,8.05595926,3747.2,3747.1,0.021]
[1753059916229,8.60595926,3747.2,3747.1,0.021]
[1753059919140,8.60295926,3747.2,3747.1,0.021]
[1753059920343,0.8002,3747.7,3747.1,0.021]
[1753059920569,2.66846456,3747.5,3747.1,0.021]
[1753059920860,0.1328,3747.2,3747.1,0.021]
[1753059922147,4.173,3747.9,3747.1,0.021]
[1753059922344,0.1328,3747.5,3747.1,0.4499]
[1753059923032,0.1328,3747.5,3747.1,0.021]
[1753059923241,0.1328,3747.5,3747.2,0.4289]
[1753059923441,0.4342,3748.4,3747.1,0.021]
[1753059923442,0.7906,3748.5,3747.3,0.4289]
[1753059923669,0.1328,3748.1,3747.5,0.832]
[1753059926475,0.1328,3748.1,3747.5,0.97137]
[1753059928065,0.002,3748.6,3747.6,0.46188374]
[1753059928247,0.1328,3748.3,3747.6,0.59468374]
[1753059928431,0.1328,3748.3,3747.6,3.23636666]
[1753059928637,0.1328,3748.3,3747.7,0.4352]
[1753059928855,0.002,3748.6,3747.8,0.02668232]
[1753059929075,0.002,3748.6,3747.8,2.69491365]
[1753059929254,0.002,3748.6,3748.1,0.1328]
[1753059929448,0.002,3748.6,3747.9,9.01249997]
[1753059929642,0.002,3748.6,3748.4,0.1328]
[1753059929859,0.002,3748.6,3748.3,0.1328]
[1753059930169,0.002,3748.6,3748.3,0.44233733]
[1753059930846,0.002,3748.6,3748.3,0.1328]
[1753059931237,0.002,3748.6,3748.3,4.3018]
[1753059931835,0.002,3748.6,3748.4,0.4352]
[1753059932284,0.002,3748.6,3747.9,11.24539342]
[1753059932285,0.4433,3748.6,3747.9,5.57729997]
[1753059932489,0.46797252,3748.5,3747.9,5.57729997]
[1753059932672,0.46797252,3748.5,3747.9,4.75999997]
[1753059932673,3.13570706,3748.5,3747.9,4.75999997]
[1753059932972,0.46797252,3748.5,3747.9,4.75999997]
[1753059933340,0.46797252,3748.5,3747.8,4.169]
[1753059933540,0.002,3748.6,3747.8,4.96155203]
[1753059933792,0.002,3748.6,3747.9,0.4618816]
[1753059934287,0.002,3748.6,3748.0,0.8201]
[1753059934678,0.002,3748.6,3748.1,4.169]
[1753059934878,0.002,3748.6,3748.1,4.6042]
[1753059935061,0.002,3748.6,3748.2,0.811902]
[1753059935263,0.002,3748.6,3748.2,1.247102]
[1753059935439,0.002,3748.6,3748.3,4.6042]
[1753059936099,0.002,3748.6,3748.3,4.169]
[1753059936414,0.002,3748.6,3748.4,4.6042]
[1753059936698,0.002,3748.6,3748.5,0.5416102]
[1753059937251,0.002,3748.6,3748.4,4.169]
[1753059937252,0.4433,3748.6,3747.7,0.8319]
[1753059937501,0.002,3748.6,3747.9,3.0]
[1753059937805,0.002,3748.6,3748.0,0.4352]
[1753059937966,0.002,3748.6,3748.1,3.0]
[1753059938170,0.002,3748.6,3748.2,0.7895]
[1753059939202,0.002,3748.6,3748.3,0.4352]
[1753059939447,0.002,3748.6,3748.2,1.16845]
[1753059940329,0.002,3748.6,3748.3,4.168]
[1753059940690,0.002,3748.6,3748.5,2.66773376]
[1753059940891,0.002,3748.6,3748.5,11.19753373]
[1753059941093,0.002,3748.6,3748.5,13.81748889]
[1753059941406,0.002,3749.4,3749.3,6.43696453]
[1753059941590,0.002,3749.4,3749.3,7.9388]
[1753059941914,0.002,3749.4,3749.3,11.04116453]
[1753059942408,0.002,3749.4,3749.3,11.17396453]
[1753059942575,0.002,3749.4,3749.3,9.89092688]
[1753059943214,0.002,3749.4,3749.3,12.55809141]
[1753059943928,0.002,3749.4,3749.3,17.31809138]
[1753059947414,0.002,3749.4,3749.3,16.88289138]
[1753059947616,0.002,3749.4,3749.3,17.31809138]
[1753059953317,0.002,3749.4,3749.3,32.27703038]
[1753059953638,0.002,3749.4,3749.3,31.14653038]
[1753059954527,1e-08,3749.4,3749.3,53.33951539]
[1753059954847,0.002,3750.0,3749.8,7.04220889]
[1753059955146,0.002,3750.0,3749.8,34.24832389]
[1753059955438,0.002,3750.0,3749.8,30.95489889]
[1753059955616,0.002,3750.0,3749.8,19.60637989]
[1753059955812,0.002,3750.0,3749.8,13.22312489]
[1753059956020,0.002,3750.0,3749.8,5.405116]
[1753059956220,0.002,3750.0,3749.8,7.2988]
[1753059956615,0.002,3750.0,3749.8,9.96560889]
[1753059956821,0.002,3750.0,3749.8,10.40080889]
[1753059957539,0.002,3750.0,3749.8,11.16710889]
[1753059957836,0.002,3750.0,3749.8,9.92450018]
[1753059958040,0.002,3750.0,3749.8,3.1328]
[1753059958204,0.002,3750.0,3749.8,0.1328]
[1753059958404,0.4631,3749.9,3749.8,4.2988]
[1753059959139,0.4631,3749.9,3749.8,4.166]
[1753059959442,0.4631,3749.9,3749.1,0.1328]
[1753059959443,1.2911,3749.9,3749.1,0.1328]
[1753059959616,0.97454547,3749.8,3749.3,3.0]
[1753059959949,0.4431,3749.7,3749.4,4.166]
[1753059960108,0.4431,3749.6,3749.4,4.166]
[1753059960309,0.1328,3749.8,3749.4,4.166]
[1753059960658,0.02,3749.9,3749.7,0.1328]
[1753059960917,0.02,3749.9,3749.8,7.166]
[1753059961119,0.02,3749.9,3749.8,8.37188]
[1753059961317,0.02,3749.9,3749.8,11.03868889]
[1753059961608,0.02,3749.9,3749.8,17.03868885]
[1753059962783,0.022,3749.9,3749.8,34.79967285]
[1753059962969,0.022,3749.9,3749.8,24.47376785]
[1753059963165,0.022,3749.9,3749.8,19.71376789]
[1753059963405,0.022,3749.9,3749.8,12.82868889]
[1753059963869,0.022,3749.9,3749.8,15.16167889]
[1753059964072,0.022,3749.9,3749.8,12.82868889]
[1753059964293,0.022,3749.9,3749.8,8.18978889]
[1753059964503,0.022,3749.9,3749.8,12.35578889]
[1753059964803,0.022,3749.9,3749.8,16.03307889]
[1753059965010,0.022,3749.9,3749.8,12.82868889]
[1753059965166,0.022,3749.9,3749.8,8.66268889]
[1753059965373,0.022,3749.9,3749.8,7.63978889]
[1753059965666,0.022,3749.9,3749.8,4.166]
[1753059966072,0.022,3749.9,3749.8,6.85947697]
[1753059966300,0.022,3749.9,3749.8,6.83280889]
[1753059966508,0.022,3749.9,3749.8,4.166]
[1753059966676,0.4431,3750.3,3749.8,4.166]
[1753059967016,0.4431,3750.2,3749.8,4.166]
[1753059967306,0.4431,3750.1,3749.8,4.166]
[1753059967470,1.2127,3750.6,3749.8,6.8327971]
[1753059967671,1.2127,3750.6,3749.8,7.166]
[1753059967907,1.2127,3750.6,3749.9,3.02666737]
[1753059968072,0.7696,3750.6,3750.1,3.0]
[1753059968277,1.2127,3750.6,3750.2,4.165]
[1753059968679,0.7696,3750.6,3750.3,3.02666453]
[1753059968870,0.002,3750.7,3750.4,4.165]
[1753059969077,0.4451,3750.7,3750.4,4.165]
[1753059969392,0.4431,3750.6,3750.4,4.165]
[1753059969591,0.4431,3750.5,3750.4,4.165]
[1753059969815,0.8292,3750.7,3750.4,4.165]
[1753059970021,0.002,3750.7,3750.5,0.02666311]
[1753059970319,0.002,3750.7,3750.6,4.165]
[1753059970717,0.002,3750.7,3750.6,10.51704301]
[1753059970910,0.002,3750.7,3750.6,11.76904301]
[1753059971237,0.002,3750.7,3750.6,12.36404297]
[1753059971527,0.002,3750.7,3750.6,16.52904297]
[1753059973101,0.002,3750.7,3750.6,16.05614297]
[1753059973891,0.002,3750.7,3750.6,16.52904297]
[1753059974105,0.002,3750.7,3750.6,17.07904297]
[1753059974308,0.002,3750.7,3750.6,24.74184997]
[1753059974590,0.002,3750.7,3750.6,17.07904297]
[1753059974819,0.002,3750.7,3750.6,24.80186797]
[1753059975006,0.002,3750.7,3750.6,23.12477797]
[1753059975404,0.002,3750.7,3750.6,23.25757797]
[1753059976009,0.002,3750.7,3750.6,27.52904197]
[1753059976183,0.002,3750.7,3750.6,24.72919197]
[1753059976387,0.002,3750.7,3750.6,21.69984297]
[1753059976620,0.002,3750.7,3750.6,17.21184297]
[1753059976823,0.002,3750.7,3750.6,12.02394297]
[1753059977034,0.002,3750.7,3750.6,16.18894297]
[1753059978333,0.002,3750.7,3750.6,4.89279996]
[1753059978334,0.4451,3750.7,3750.6,4.89279996]
[1753059978488,0.4451,3750.7,3750.6,7.2968]
[1753059978821,0.4451,3750.7,3750.6,4.2968]
[1753059979182,0.4451,3750.7,3750.6,7.2968]
[1753059979385,0.002,3750.7,3750.6,7.2968]
[1753059980595,0.4451,3750.7,3750.6,7.2968]
[1753059981523,0.002,3750.7,3750.6,7.2968]
[1753059982393,0.002,3750.7,3750.6,3.1328]
[1753059982592,0.4451,3750.7,3750.6,4.2968]
[1753059982812,1.2186,3750.7,3750.6,4.2968]
[1753059984225,1.2186,3750.7,3750.6,4.164]
[1753059984429,1.61173724,3750.7,3750.6,4.164]
[1753059984604,1.2186,3750.7,3750.5,4.164]
[1753059984800,0.1328,3750.6,3750.5,4.164]
[1753059985007,0.4431,3750.6,3750.5,4.164]
[1753059985525,0.46977252,3750.6,3750.5,4.164]
[1753059985701,0.86291533,3750.6,3750.5,4.164]
[1753059985904,1.65501533,3750.6,3750.5,4.164]
[1753059986429,1.2352,3750.6,3750.5,4.164]
[1753059988799,0.2352,3750.6,3750.5,4.164]
[1753059989420,0.2352,3750.6,3749.9,0.1328]
[1753059989623,0.2352,3750.6,3750.0,4.164]
[1753059989828,0.02667252,3750.5,3750.0,4.164]
[1753059989996,0.2352,3750.6,3750.0,4.164]
[1753059990199,0.02667252,3750.5,3750.0,4.164]
[1753059990635,0.4524816,3750.5,3750.0,4.164]
[1753059990835,0.42580908,3750.5,3750.0,4.164]
[1753059991032,0.1328,3750.5,3750.0,4.164]
[1753059991232,0.429,3750.4,3750.0,4.164]
[1753059991529,0.1328,3750.2,3750.0,4.164]
[1753059991905,0.7934,3750.4,3750.0,4.164]
[1753059992124,0.429,3750.3,3750.0,4.164]
[1753059992308,0.429,3750.2,3750.0,4.164]
[1753059992644,0.429,3750.1,3750.0,4.164]
[1753059993654,0.7934,3750.4,3750.0,4.164]
[1753059994508,0.429,3750.3,3750.0,4.164]
[1753059994707,0.7934,3750.4,3750.0,4.164]
[1753059994911,0.429,3750.2,3750.0,4.164]
[1753059996050,0.7934,3750.4,3750.0,4.164]
[1753059996227,0.7934,3750.4,3750.0,4.59378]
[1753059996423,0.429,3750.3,3750.0,4.164]
[1753059996625,0.7934,3750.4,3750.0,4.164]
[1753059996828,0.7947,3750.7,3750.1,0.02666595]
[1753059997049,0.9275,3750.7,3750.1,2.82604535]
[1753059997264,0.9275,3750.7,3750.1,2.82603773]
[1753059997549,0.7947,3750.7,3750.3,0.1328]
[1753059997854,0.7947,3750.7,3750.4,4.164]
[1753059998272,0.429,3750.6,3750.4,4.164]
[1753059998454,0.429,3750.5,3750.4,4.164]
[1753059998756,0.7947,3750.7,3750.4,4.164]
[1753059999456,0.429,3750.6,3750.4,4.164]
[1753060000235,0.429,3750.5,3750.4,4.164]
[1753060000439,0.5618,3750.5,3750.4,4.164]
[1753060000838,0.5618,3750.5,3749.9,0.1328]
[1753060000839,0.96672911,3750.5,3749.9,0.1328]
[1753060001038,0.7608,3750.3,3749.8,0.001]
[1753060001249,0.1328,3750.0,3749.8,0.001]
[1753060001450,0.15947252,3750.0,3749.8,0.001]
[1753060001651,0.1328,3750.0,3749.8,0.001]
[1753060001842,0.429,3749.9,3749.8,0.001]
[1753060002240,0.1328,3750.0,3749.8,0.001]
[1753060002440,0.1328,3750.0,3749.8,4.165]
[1753060002640,0.7596,3750.6,3749.8,5.35526702]
[1753060002968,0.1328,3750.6,3750.0,0.8274]
[1753060003284,0.002,3750.7,3750.3,0.1328]
[1753060003470,0.002,3750.7,3750.3,4.2968]
[1753060004224,0.429,3750.6,3750.3,4.164]
[1753060004457,0.429,3750.5,3750.3,4.164]
[1753060004666,0.1328,3750.6,3750.3,4.163]
[1753060004868,0.429,3750.4,3750.3,4.163]
[1753060005871,0.429,3750.4,3750.0,0.1328]
[1753060006072,0.429,3750.4,3749.8,0.001]
[1753060006073,1.2263,3750.3,3750.2,4.163]
[1753060006359,1.2263,3750.3,3749.8,0.001]
[1753060006360,0.1328,3750.2,3750.0,4.164]
[1753060006569,0.5618,3750.2,3750.0,4.164]
[1753060006772,0.7973,3750.6,3750.0,4.164]
[1753060006971,0.9301,3750.6,3750.0,4.7679]
[1753060007171,1.3591,3750.6,3750.0,4.2968]
[1753060007340,0.59444977,3750.5,3750.0,4.2968]
[1753060007736,0.1328,3750.1,3750.0,4.164]
[1753060007985,0.5618,3750.1,3750.0,4.164]
[1753060008474,0.8266,3750.4,3750.0,4.164]
[1753060008774,0.1328,3750.3,3750.0,4.164]
[1753060010575,0.1328,3750.6,3750.1,0.4711]
[1753060010818,0.1328,3750.6,3750.2,0.49017524]
[1753060010981,0.1328,3750.6,3750.2,0.93461]
[1753060011979,0.5618,3750.6,3750.0,4.2968]
[1753060013054,0.429,3750.5,3750.0,4.164]
[1753060013258,0.5618,3750.4,3750.0,4.164]
[1753060013668,0.429,3750.3,3750.0,4.164]
[1753060015210,0.1328,3750.4,3750.0,4.164]
[1753060015495,0.7728,3750.1,3750.0,0.001]
[1753060015653,0.79947252,3750.1,3750.0,0.001]
[1753060015857,1.22847252,3750.1,3750.0,0.001]
[1753060016269,3.89506807,3750.1,3750.0,0.001]
[1753060016795,4.42516807,3750.1,3750.0,0.001]
[1753060017000,7.39849555,3750.1,3750.0,0.001]
[1753060017569,7.39849555,3750.1,3749.2,0.001]
[1753060017570,6.21716453,3749.3,3749.2,0.001]
[1753060017776,4.01376259,3748.6,3747.8,0.001]
[1753060018086,4.01404728,3748.2,3747.8,0.001]
[1753060018265,4.0407198,3748.2,3747.8,0.001]
[1753060018601,4.5051198,3748.2,3747.8,0.001]